bitfinex/quotes_BTCUSD_20250618
["timestamp","ask_amount","ask_price","bid_price","bid_amount"]
[1750278775356,1.13480548,104440.0,104430.0,0.001]
[1750278775573,1.14153319,104440.0,104430.0,0.001]
[1750278775790,1.17031019,104440.0,104430.0,0.001]
[1750278778209,1.07157352,104440.0,104430.0,0.001]
[1750278778428,1.13013639,104440.0,104430.0,0.0312]
[1750278778867,0.75719104,104440.0,104430.0,0.0312]
[1750278779083,0.75719104,104440.0,104430.0,0.0637]
[1750278779734,0.75719104,104440.0,104430.0,0.25521584]
[1750278780382,1.13013639,104440.0,104430.0,0.25521584]
[1750278780835,1.13013486,104440.0,104430.0,0.0637]
[1750278781314,1.13013486,104440.0,104430.0,0.001]
[1750278781736,1.19143486,104440.0,104430.0,0.001]
[1750278782370,1.28767662,104440.0,104430.0,0.001]
[1750278783429,1.31645362,104440.0,104430.0,0.001]
[1750278783645,1.31645362,104440.0,104430.0,0.061]
[1750278783902,1.12056017,104440.0,104430.0,0.061]
[1750278784774,1.12055897,104440.0,104430.0,0.061]
[1750278786433,0.74761438,104440.0,104430.0,0.061]
[1750278786612,1.12055973,104440.0,104430.0,0.061]
[1750278788013,1.12056318,104440.0,104430.0,0.061]
[1750278789152,1.12058082,104440.0,104430.0,0.061]
[1750278789584,1.30159518,104440.0,104430.0,0.061]
[1750278790051,1.33037418,104440.0,104430.0,0.061]
[1750278790501,1.33037418,104440.0,104430.0,0.06]
[1750278790941,1.35893553,104440.0,104430.0,0.06]
[1750278793152,1.35893726,104440.0,104430.0,0.06]
[1750278793366,1.70332126,104440.0,104430.0,0.03596]
[1750278793822,1.33037591,104440.0,104430.0,0.03596]
[1750278794088,0.19153418,104420.0,104400.0,0.0305]
[1750278794307,0.54114825,104410.0,104400.0,0.0625]
[1750278794521,0.19157088,104400.0,104390.0,0.35941128]
[1750278794963,0.2203054,104400.0,104390.0,0.35941128]
[1750278795396,0.02873443,104400.0,104390.0,0.36899009]
[1750278795638,0.00957771,104400.0,104390.0,0.36211054]
[1750278795858,0.0191557,104400.0,104390.0,0.36211054]
[1750278796049,0.02873351,104400.0,104390.0,0.28545649]
[1750278796537,0.03831168,104400.0,104390.0,0.28745649]
[1750278796783,0.02873351,104400.0,104390.0,0.28745649]
[1750278797047,0.03831159,104400.0,104390.0,0.28745649]
[1750278797259,0.02873351,104400.0,104390.0,0.28945649]
[1750278798800,0.03831168,104400.0,104390.0,0.28945649]
[1750278798996,0.02873351,104400.0,104390.0,0.28945649]
[1750278799233,0.03831168,104400.0,104390.0,0.28945649]
[1750278799462,0.04789004,104400.0,104390.0,0.28945649]
[1750278800652,0.72115598,104410.0,104400.0,0.0324]
[1750278800868,0.73011846,104410.0,104400.0,0.0324]
[1750278801313,0.20114924,104400.0,104390.0,0.24757814]
[1750278801525,0.21072769,104400.0,104390.0,0.2895576]
[1750278801767,0.22030623,104400.0,104390.0,0.2895576]
[1750278801988,0.22030623,104400.0,104390.0,0.2875576]
[1750278802221,0.03831352,104400.0,104390.0,0.29513641]
[1750278802680,0.2298844,104400.0,104390.0,0.29513641]
[1750278802939,0.23946239,104400.0,104390.0,0.2895576]
[1750278803378,0.03831297,104400.0,104390.0,0.30113641]
[1750278803628,0.02873452,104400.0,104390.0,0.30113641]
[1750278803854,0.01915616,104400.0,104390.0,0.30113641]
[1750278804319,0.00957771,104400.0,104390.0,0.30113641]
[1750278804543,0.57409342,104410.0,104390.0,0.30113641]
[1750278804544,0.35853835,104410.0,104400.0,0.2857054]
[1750278804753,0.35915405,104410.0,104400.0,0.2857054]
[1750278804975,0.3687313,104410.0,104400.0,0.2857054]
[1750278805388,0.37830874,104410.0,104400.0,0.2857054]
[1750278805605,0.37830874,104410.0,104400.0,0.28670558]
[1750278805606,0.57943889,104410.0,104400.0,0.28670558]
[1750278805825,0.94280735,104410.0,104400.0,0.28670586]
[1750278806043,0.59323019,104410.0,104400.0,0.29828412]
[1750278806394,0.59323019,104410.0,104400.0,0.3078622]
[1750278806617,0.59323019,104410.0,104400.0,0.30786174]
[1750278807003,0.29693889,104410.0,104400.0,0.30786174]
[1750278807204,0.59261442,104410.0,104400.0,0.0954]
[1750278807424,0.68885618,104410.0,104400.0,0.063]
[1750278808655,0.68885584,104410.0,104400.0,0.063]
[1750278808845,0.71799801,104410.0,104400.0,0.063]
[1750278810371,0.79722069,104410.0,104400.0,0.063]
[1750278810583,0.82600569,104410.0,104400.0,0.063]
[1750278811469,0.45306092,104410.0,104400.0,0.063]
[1750278811681,0.45306092,104410.0,104400.0,0.003]
[1750278811682,0.76470627,104410.0,104400.0,0.003]
[1750278811920,0.87279824,104410.0,104400.0,0.0664]
[1750278812382,0.89071825,104410.0,104400.0,0.002]
[1750278812601,1.24574359,104410.0,104400.0,0.002]
[1750278812823,0.20114942,104400.0,104390.0,0.29330523]
[1750278813060,0.21072768,104400.0,104390.0,0.28372642]
[1750278814606,0.21072768,104400.0,104390.0,0.29430533]
[1750278814828,0.02873461,104400.0,104390.0,0.30388414]
[1750278815255,0.02873461,104400.0,104390.0,0.30588414]
[1750278815732,0.02873396,104400.0,104390.0,0.30588414]
[1750278815953,0.03831232,104400.0,104390.0,0.30588414]
[1750278816401,0.02873387,104400.0,104390.0,0.30588414]
[1750278816623,0.0191557,104400.0,104390.0,0.36588414]
[1750278816848,0.02873378,104400.0,104390.0,0.36588414]
[1750278818316,0.03831195,104400.0,104390.0,0.36588414]
[1750278818530,0.0191557,104400.0,104390.0,0.36588414]
[1750278818969,0.02873387,104400.0,104390.0,0.36588414]
[1750278822520,0.03831223,104400.0,104390.0,0.36588414]
[1750278822754,0.02873387,104400.0,104390.0,0.36588414]
[1750278823196,0.0191557,104400.0,104390.0,0.36588414]
[1750278823414,0.01915561,104400.0,104390.0,0.36588414]
[1750278823627,0.02813015,104400.0,104390.0,0.36588414]
[1750278823852,0.04728649,104400.0,104390.0,0.36588414]
[1750278824066,0.05686485,104400.0,104390.0,0.36588414]
[1750278824289,0.03770823,104400.0,104390.0,0.36588414]
[1750278824495,0.00897454,104400.0,104390.0,0.36588414]
[1750278824702,0.00957771,104400.0,104390.0,0.3458255]
[1750278825325,0.01915561,104400.0,104390.0,0.3458255]
[1750278825519,0.02873369,104400.0,104390.0,0.3458255]
[1750278825804,0.03587383,104400.0,104390.0,0.3458255]
[1750278826018,0.03587406,104400.0,104390.0,0.3458255]
[1750278826166,0.02629598,104400.0,104390.0,0.3458255]
[1750278826806,0.01671808,104400.0,104390.0,0.3458255]
[1750278827023,0.01731552,104400.0,104390.0,0.3458255]
[1750278827436,0.03587388,104400.0,104390.0,0.3458255]
[1750278828398,0.02689351,104400.0,104390.0,0.3458255]
[1750278828608,0.03587413,104400.0,104390.0,0.3458255]
[1750278828815,0.02629614,104400.0,104390.0,0.3458255]
[1750278829726,0.01671833,104400.0,104390.0,0.3458255]
[1750278829936,0.00773771,104400.0,104390.0,0.3458255]
[1750278830576,0.63933583,104410.0,104400.0,0.2827054]
[1750278831425,0.6393359,104410.0,104400.0,0.2827054]
[1750278831639,0.6393359,104410.0,104400.0,0.2731275]
[1750278831640,0.61977135,104410.0,104400.0,0.2731275]
[1750278831855,0.61977135,104410.0,104400.0,0.28270558]
[1750278832303,0.61977135,104410.0,104400.0,0.29228357]
[1750278833223,0.40906295,104410.0,104400.0,0.30186147]
[1750278833459,0.04990835,104410.0,104400.0,0.30186147]
[1750278833679,0.04609662,104410.0,104400.0,0.30186147]
[1750278833897,0.02813477,104410.0,104400.0,0.46010147]
[1750278834115,0.01855779,104410.0,104400.0,0.46010147]
[1750278834337,0.76002952,104420.0,104410.0,0.28558457]
[1750278834566,0.42821274,104420.0,104410.0,0.29516155]
[1750278834780,0.40007964,104420.0,104410.0,0.29516155]
[1750278834998,0.4090605,104420.0,104410.0,0.29516155]
[1750278835435,0.37194637,104420.0,104410.0,0.29516155]
[1750278835653,0.35098086,104420.0,104410.0,0.29516155]
[1750278836520,0.35298086,104420.0,104410.0,0.29516155]
[1750278837618,0.344,104420.0,104410.0,0.29516155]
[1750278838046,0.35296908,104420.0,104410.0,0.29516155]
[1750278838756,0.344,104420.0,104410.0,0.29516155]
[1750278839840,0.35357597,104420.0,104410.0,0.29516155]
[1750278840261,0.35296566,104420.0,104410.0,0.29516155]
[1750278840483,0.36315203,104420.0,104410.0,0.29516155]
[1750278841362,0.37272837,104420.0,104410.0,0.29516155]
[1750278842530,0.38230489,104420.0,104410.0,0.29516155]
[1750278842746,0.37272837,104420.0,104410.0,0.29516155]
[1750278843589,0.3823048,104420.0,104410.0,0.29516155]
[1750278843804,0.58280513,104420.0,104410.0,0.45308209]
[1750278844212,0.40084756,104420.0,104410.0,0.46265852]
[1750278844874,0.59238174,104420.0,104410.0,0.46265852]
[1750278845720,0.59238229,104420.0,104410.0,0.46265852]
[1750278846200,0.39127141,104420.0,104410.0,0.46265852]
[1750278846644,0.58280559,104420.0,104410.0,0.29516154]
[1750278846854,0.58280559,104420.0,104410.0,0.44350447]
[1750278847061,0.58080559,104420.0,104410.0,0.44350447]
[1750278847479,0.57880559,104420.0,104410.0,0.45308154]
[1750278848120,0.57880524,104420.0,104410.0,0.45308154]
[1750278849830,0.00957707,104410.0,104400.0,0.44140522]
[1750278850071,0.00957707,104410.0,104400.0,0.45098348]
[1750278850714,0.03830838,104410.0,104400.0,0.45098348]
[1750278851133,0.03830838,104410.0,104400.0,0.45198348]
[1750278851612,0.02873103,104410.0,104400.0,0.45198348]
[1750278852026,0.02873103,104410.0,104400.0,0.45398348]
[1750278852244,0.01915387,104410.0,104400.0,0.45398348]
[1750278852683,0.01915378,104410.0,104400.0,0.45398348]
[1750278853056,0.01915378,104410.0,104400.0,0.45382348]
[1750278854479,0.35915286,104420.0,104410.0,0.28478429]
[1750278854693,0.58838322,104420.0,104410.0,0.27520731]
[1750278854913,0.58838322,104420.0,104410.0,0.28478447]
[1750278855353,0.57880716,104420.0,104410.0,0.28478447]
[1750278855643,0.56984035,104420.0,104410.0,0.28478447]
[1750278855861,0.57880837,104420.0,104410.0,0.28478447]
[1750278856576,0.56984035,104420.0,104410.0,0.29436154]
[1750278856791,0.57880837,104420.0,104410.0,0.29436154]
[1750278857241,0.37769749,104420.0,104410.0,0.30393852]
[1750278857689,0.37769685,104420.0,104410.0,0.30393852]
[1750278857980,0.38727337,104420.0,104410.0,0.30393852]
[1750278861366,0.37769685,104420.0,104410.0,0.30393852]
[1750278861590,0.38727337,104420.0,104410.0,0.30393852]
[1750278863680,0.405239,104420.0,104410.0,0.30393852]
[1750278864139,0.41481561,104420.0,104410.0,0.30393852]
[1750278864402,0.405239,104420.0,104410.0,0.30393852]
[1750278864883,0.38608568,104420.0,104410.0,0.30393852]
[1750278865119,0.38610074,104420.0,104410.0,0.30393852]
[1750278865568,0.26636439,104420.0,104410.0,0.30393852]
[1750278865804,0.06525351,104420.0,104410.0,0.30393852]
[1750278866463,0.06525339,104420.0,104410.0,0.30393852]
[1750278867577,0.60229054,104430.0,104410.0,0.30393788]
[1750278867793,0.60902803,104430.0,104410.0,0.30393788]
[1750278868257,0.60890803,104430.0,104410.0,0.30393788]
[1750278868477,0.01915277,104420.0,104410.0,0.30393788]
[1750278869642,0.03830471,104420.0,104410.0,0.30393788]
[1750278869859,0.03830462,104420.0,104410.0,0.30393788]
[1750278871197,0.02872828,104420.0,104410.0,0.30393788]
[1750278871855,0.04788123,104420.0,104410.0,0.22986145]
[1750278872104,0.38788123,104420.0,104410.0,0.22986145]
[1750278872318,0.37830471,104420.0,104410.0,0.29346145]
[1750278872974,0.36872828,104420.0,104410.0,0.29346145]
[1750278873225,0.37830462,104420.0,104410.0,0.29346145]
[1750278876244,0.3687281,104420.0,104410.0,0.29346145]
[1750278876904,0.368728,104420.0,104410.0,0.29346145]
[1750278878254,0.57467459,104430.0,104420.0,0.28616346]
[1750278878493,0.59767528,104430.0,104420.0,0.28616346]
[1750278878942,0.44075528,104430.0,104420.0,0.28616346]
[1750278879148,0.59767528,104430.0,104420.0,0.34616346]
[1750278879582,0.59967528,104430.0,104420.0,0.34616346]
[1750278879794,0.62862443,104430.0,104420.0,0.34616346]
[1750278880229,0.34046554,104430.0,104420.0,0.35573952]
[1750278880440,0.24546568,104430.0,104420.0,0.35573952]
[1750278880872,0.05394984,104430.0,104420.0,0.35573952]
[1750278881120,0.03094915,104430.0,104420.0,0.35573952]
[1750278881570,0.05010045,104430.0,104420.0,0.35573952]
[1750278882013,0.25178436,104430.0,104420.0,0.35573952]
[1750278882237,0.28376898,104430.0,104420.0,0.35573952]
[1750278882484,0.28376898,104430.0,104420.0,0.34616346]
[1750278882715,0.28376898,104430.0,104420.0,0.33658731]
[1750278882954,0.647139,104430.0,104420.0,0.27068749]
[1750278883420,0.6375634,104430.0,104420.0,0.27068749]
[1750278883893,0.6375634,104430.0,104420.0,0.26111088]
[1750278884113,0.6375634,104430.0,104420.0,0.27068749]
[1750278884567,0.63756284,104430.0,104420.0,0.28026401]
[1750278884783,0.97756284,104430.0,104420.0,0.28984044]
[1750278885055,0.97756239,104430.0,104420.0,0.28984044]
[1750278885922,0.97756239,104430.0,104420.0,0.29941678]
[1750278887448,0.97756194,104430.0,104420.0,0.29941678]
[1750278888107,0.97356194,104430.0,104420.0,0.29941678]
[1750278888542,0.96398624,104430.0,104420.0,0.28026401]
[1750278890338,0.96397925,104430.0,104420.0,0.28026401]
[1750278890547,0.95499681,104430.0,104420.0,0.31086401]
[1750278890751,0.96397881,104430.0,104420.0,0.31086401]
[1750278890957,0.96397881,104430.0,104420.0,0.32044044]
[1750278891392,0.96397881,104430.0,104420.0,0.28984044]
[1750278891613,0.59103346,104430.0,104420.0,0.33001678]
[1750278891826,0.96397881,104430.0,104420.0,0.36221678]
[1750278892470,0.97355432,104430.0,104420.0,0.35264008]
[1750278892679,0.97355432,104430.0,104420.0,0.36221633]
[1750278892894,0.97355217,104430.0,104420.0,0.36221633]
[1750278893332,0.97355217,104430.0,104420.0,0.35264008]
[1750278893543,0.97355216,104430.0,104420.0,0.36221633]
[1750278894178,0.97355216,104430.0,104420.0,0.35264008]
[1750278895002,0.94660619,104430.0,104420.0,0.35264008]
[1750278895209,0.97355219,104430.0,104420.0,0.35264008]
[1750278895422,0.97263219,104430.0,104420.0,0.35264008]
[1750278898063,0.97263219,104430.0,104420.0,0.36221633]
[1750278898283,0.9726323,104430.0,104420.0,0.36221633]
[1750278899403,0.97263288,104430.0,104420.0,0.36221633]
[1750278899835,0.97263288,104430.0,104420.0,0.35264008]
[1750278901220,0.97263427,104430.0,104420.0,0.35264008]
[1750278901663,1.12951427,104430.0,104420.0,0.35264008]
[1750278901802,1.10256758,104430.0,104420.0,0.35264008]
[1750278902227,1.10256758,104430.0,104420.0,0.36221633]
[1750278904172,1.10256758,104430.0,104420.0,0.33348731]
[1750278905681,1.09299207,104430.0,104420.0,0.33348731]
[1750278905887,1.09299207,104430.0,104420.0,0.34306374]
[1750278907132,1.09299207,104430.0,104420.0,0.33348731]
[1750278909500,1.11095859,104430.0,104420.0,0.33348731]
[1750278909702,1.11128606,104430.0,104420.0,0.32391079]
[1750278910326,1.14006306,104430.0,104420.0,0.32391079]
[1750278910967,1.14006306,104430.0,104420.0,0.33348731]
[1750278911174,0.76711771,104430.0,104420.0,0.33348731]
[1750278911386,1.14006658,104430.0,104420.0,0.33348731]
[1750278911593,1.14006658,104430.0,104420.0,0.34306374]
[1750278913044,1.14006658,104430.0,104420.0,0.35264008]
[1750278913881,1.14007422,104430.0,104420.0,0.35264008]
[1750278915121,1.13108744,104430.0,104420.0,0.35264008]
[1750278915325,0.76712917,104430.0,104420.0,0.35264008]
[1750278915818,1.14007452,104430.0,104420.0,0.35264008]
[1750278918076,1.14007453,104430.0,104420.0,0.35264008]
[1750278919332,1.14007453,104430.0,104420.0,0.34306374]
[1750278919546,1.12210036,104430.0,104420.0,0.32391079]
[1750278919755,1.14007454,104430.0,104420.0,0.32391079]
[1750278922094,1.14007454,104430.0,104420.0,0.33348722]
[1750278922518,1.14007458,104430.0,104420.0,0.33348722]
[1750278923448,1.14007458,104430.0,104420.0,0.32391079]
[1750278926556,1.14007458,104430.0,104420.0,0.32391088]
[1750278927545,1.14007458,104430.0,104420.0,0.33348749]
[1750278927961,1.14003458,104430.0,104420.0,0.34306392]
[1750278928178,1.14003458,104430.0,104420.0,0.33348749]
[1750278928789,1.14003458,104430.0,104420.0,0.34306401]
[1750278929401,0.98319459,104430.0,104420.0,0.34306401]
[1750278929598,1.14003459,104430.0,104420.0,0.34306401]
[1750278930021,0.61024924,104430.0,104420.0,0.35264035]
[1750278930227,0.76704924,104430.0,104420.0,0.35264035]
[1750278930432,0.77662494,104430.0,104420.0,0.35264035]
[1750278930666,0.0787334,104430.0,104420.0,0.36221641]
[1750278930894,0.00898711,104430.0,104420.0,0.45845817]
[1750278931107,0.12725058,104450.0,104440.0,0.28052102]
[1750278931338,0.09173791,104450.0,104440.0,0.28052102]
[1750278931550,0.10130132,104450.0,104440.0,0.28052102]
[1750278931753,0.44130132,104450.0,104440.0,0.28052102]
[1750278931956,0.47387009,104450.0,104440.0,0.28052102]
[1750278932157,0.46429641,104450.0,104440.0,0.28052102]
[1750278932359,0.10514969,104450.0,104440.0,0.28052102]
[1750278932568,0.06418213,104450.0,104440.0,0.37676278]
[1750278932772,0.06818213,104450.0,104440.0,0.37676278]
[1750278933386,0.05720511,104450.0,104440.0,0.37676278]
[1750278933998,0.05520511,104450.0,104440.0,0.37676278]
[1750278935427,0.05520511,104450.0,104440.0,0.74970813]
[1750278935924,0.05520511,104450.0,104440.0,0.75170813]
[1750278936181,0.05520511,104450.0,104440.0,0.75570813]
[1750278936182,0.0158107,104450.0,104440.0,0.75570813]
[1750278936418,0.0158107,104450.0,104440.0,0.92024898]
[1750278936859,0.0158107,104450.0,104440.0,1.07704898]
[1750278937090,0.0158107,104450.0,104440.0,1.13704898]
[1750278937313,0.4059061,104490.0,104480.0,0.28283652]
[1750278937314,0.00956965,104490.0,104480.0,0.28283652]
[1750278937562,0.00956965,104490.0,104480.0,0.2924069]
[1750278938014,0.04764639,104490.0,104480.0,0.2924069]
[1750278938526,0.04764639,104490.0,104480.0,0.26369521]
[1750278938527,0.22011582,104490.0,104480.0,0.26369521]
[1750278938760,0.22011582,104490.0,104480.0,0.29240773]
[1750278938976,0.22011582,104490.0,104480.0,0.30197839]
[1750278939196,0.02870986,104490.0,104480.0,0.30197793]
[1750278939384,0.01913975,104490.0,104480.0,0.30197793]
[1750278939614,0.00956956,104490.0,104480.0,0.29240654]
[1750278940123,0.58897238,104500.0,104490.0,0.27534581]
[1750278940355,0.58897238,104500.0,104490.0,0.28491555]
[1750278940582,0.34956873,104500.0,104490.0,0.2944852]
[1750278940803,0.39748286,104500.0,104490.0,0.2944852]
[1750278941025,0.40705214,104500.0,104490.0,0.2944852]
[1750278941247,0.39748286,104500.0,104490.0,0.2944852]
[1750278941467,0.40705205,104500.0,104490.0,0.2944852]
[1750278941681,0.39748286,104500.0,104490.0,0.2944852]
[1750278941923,0.38791376,104500.0,104490.0,0.2944852]
[1750278942143,0.39748277,104500.0,104490.0,0.2944852]
[1750278942398,0.36877621,104500.0,104490.0,0.2944852]
[1750278942621,0.38791358,104500.0,104490.0,0.2944852]
[1750278943056,0.39748241,104500.0,104490.0,0.2944852]
[1750278943278,0.03834476,104500.0,104490.0,0.2944852]
[1750278943507,0.04791349,104500.0,104490.0,0.2944852]
[1750278943985,0.05748241,104500.0,104490.0,0.2944852]
[1750278944495,0.05748231,104500.0,104490.0,0.2944852]
[1750278944754,0.04791349,104500.0,104490.0,0.2944852]
[1750278945261,0.04791349,104500.0,104490.0,0.2954852]
[1750278945468,0.05748231,104500.0,104490.0,0.2954852]
[1750278945684,0.06705132,104500.0,104490.0,0.2954852]
[1750278946416,0.05748231,104500.0,104490.0,0.2954852]
[1750278946846,0.06705132,104500.0,104490.0,0.2954852]
[1750278948638,0.05748231,104500.0,104490.0,0.2954852]
[1750278949528,0.04791349,104500.0,104490.0,0.2954852]
[1750278950229,0.05748231,104500.0,104490.0,0.2954852]
[1750278950450,0.02877621,104500.0,104490.0,0.2954852]
[1750278950891,0.37833199,104510.0,104500.0,0.28449457]
[1750278951109,0.38722547,104510.0,104500.0,0.28449457]
[1750278951327,0.38722556,104510.0,104500.0,0.28449457]
[1750278951970,0.3585212,104510.0,104500.0,0.44117457]
[1750278952477,0.0185212,104510.0,104500.0,0.44117457]
[1750278952706,0.00895348,104510.0,104500.0,0.44117457]
[1750278953161,0.02778348,104510.0,104500.0,0.44117457]
[1750278953869,0.02778348,104510.0,104500.0,0.28449457]
[1750278954136,0.04624206,104510.0,104500.0,0.44117457]
[1750278954365,0.04624206,104510.0,104500.0,0.53741633]
[1750278954366,0.03667443,104510.0,104500.0,0.53741633]
[1750278955294,0.03667371,104510.0,104500.0,0.57813633]
[1750278955777,0.00895023,104510.0,104500.0,0.95108168]
[1750278956014,6e-05,104510.0,104500.0,0.95108168]
[1750278956222,6e-05,104510.0,104500.0,1.01108168]
[1750278956442,6e-05,104510.0,104500.0,1.01208168]
[1750278957091,6e-05,104510.0,104500.0,1.01608168]
[1750278957750,6e-05,104510.0,104500.0,1.01508168]
[1750278958191,6e-05,104510.0,104500.0,1.01808168]
[1750278958629,6e-05,104510.0,104500.0,1.03262253]
[1750278959291,6e-05,104510.0,104500.0,1.06045308]
[1750278960406,6e-05,104510.0,104500.0,1.05645308]
[1750278960835,6e-05,104510.0,104500.0,1.06245308]
[1750278961291,6e-05,104510.0,104500.0,1.20945308]
[1750278961757,0.00890308,104530.0,104520.0,0.28075246]
[1750278961985,0.00890308,104530.0,104520.0,0.53387422]
[1750278962217,0.00890308,104530.0,104520.0,1.44430577]
[1750278962456,0.06186866,104550.0,104540.0,0.65365571]
[1750278962457,0.0158607,104550.0,104540.0,0.65365571]
[1750278962675,0.0158607,104550.0,104540.0,0.96255832]
[1750278963133,0.0158607,104550.0,104540.0,1.45255832]
[1750278963868,0.01,104600.0,104590.0,0.21990519]
[1750278964105,0.38693982,104600.0,104590.0,0.37734519]
[1750278964348,0.04823852,104600.0,104590.0,0.37734519]
[1750278964572,0.04823852,104600.0,104590.0,0.36778469]
[1750278964573,0.58900314,104600.0,104590.0,0.36778469]
[1750278964829,0.01912137,104590.0,104580.0,0.20078675]
[1750278965083,0.21036462,104580.0,104570.0,0.00956297]
[1750278965342,0.22950948,104570.0,104560.0,0.20078869]
[1750278965582,0.02869064,104560.0,104550.0,0.19122795]
[1750278965819,0.59291418,104560.0,104550.0,0.0095648]
[1750278966054,0.61615057,104560.0,104550.0,0.1672048]
[1750278966292,0.20086055,104550.0,104540.0,0.21044547]
[1750278966553,0.20086055,104550.0,104540.0,0.36804547]
[1750278966554,0.59293541,104550.0,104540.0,0.36804547]
[1750278966787,0.92337089,104550.0,104540.0,0.35848003]
[1750278967007,0.91380618,104550.0,104540.0,0.20087994]
[1750278967245,0.91380618,104550.0,104530.0,0.37835077]
[1750278967480,0.00956544,104540.0,104530.0,0.38791657]
[1750278967701,0.01913005,104540.0,104530.0,0.38791657]
[1750278967930,0.01913005,104540.0,104530.0,0.22959657]
[1750278968157,0.01913005,104540.0,104530.0,0.38791657]
[1750278968393,0.03826083,104540.0,104530.0,0.37835077]
[1750278968634,0.0286953,104540.0,104530.0,0.36878488]
[1750278968856,0.03826083,104540.0,104530.0,0.36878488]
[1750278969152,0.0286953,104540.0,104530.0,0.36878488]
[1750278969380,0.0286953,104540.0,104530.0,0.37778488]
[1750278969604,0.01913005,104540.0,104530.0,0.37778488]
[1750278969828,0.71883643,104550.0,104540.0,0.20087994]
[1750278970059,0.22000962,104540.0,104530.0,0.37790543]
[1750278970284,0.0286953,104540.0,104530.0,0.39703759]
[1750278970520,0.03826083,104540.0,104530.0,0.39703759]
[1750278970749,0.0286953,104540.0,104530.0,0.39403759]
[1750278970972,0.03826083,104540.0,104530.0,0.39403759]
[1750278971198,0.0286953,104540.0,104530.0,0.39403759]
[1750278971885,0.04782627,104540.0,104530.0,0.39603759]
[1750278972114,0.03826074,104540.0,104530.0,0.39603759]
[1750278972341,0.92339064,104540.0,104530.0,0.008]
[1750278972563,0.98549064,104540.0,104530.0,0.008]
[1750278973268,0.98549064,104540.0,104530.0,0.002]
[1750278973495,1.0817324,104540.0,104530.0,0.002]
[1750278973722,1.0817324,104540.0,104530.0,0.004]
[1750278974180,1.0817324,104540.0,104530.0,0.002]
[1750278974416,1.09064494,104540.0,104530.0,0.003]
[1750278974861,1.28976494,104540.0,104530.0,0.003]
[1750278975307,1.28976494,104540.0,104530.0,0.002]
[1750278975537,0.55046506,104530.0,104520.0,0.22961976]
[1750278975750,0.93232323,104530.0,104520.0,0.21048513]
[1750278976179,0.92341069,104530.0,104520.0,0.21048513]
[1750278976395,0.00956718,104520.0,104510.0,0.21996911]
[1750278976612,0.01913426,104520.0,104510.0,0.22953693]
[1750278976817,0.39207961,104520.0,104510.0,0.22953693]
[1750278977060,0.01913426,104520.0,104510.0,0.22953693]
[1750278977243,0.04768507,104520.0,104510.0,0.22953693]
[1750278977467,0.01913426,104520.0,104510.0,0.22953693]
[1750278977691,0.03826898,104520.0,104510.0,0.22953693]
[1750278977919,0.42078114,104520.0,104510.0,0.22953693]
[1750278978135,0.02870153,104520.0,104510.0,0.23839004]
[1750278978364,0.40164688,104520.0,104510.0,0.23839004]
[1750278978585,0.41121424,104520.0,104510.0,0.23839004]
[1750278978809,0.41121424,104520.0,104510.0,0.23082222]
[1750278979023,0.02870153,104520.0,104510.0,0.24039004]
[1750278979272,0.02870153,104520.0,104510.0,0.24438982]
[1750278979490,0.01913426,104520.0,104510.0,0.24438982]
[1750278979709,0.03826907,104520.0,104510.0,0.24438982]
[1750278979922,0.22962,104520.0,104510.0,0.24438982]
[1750278980155,0.22005282,104520.0,104510.0,0.23482218]
[1750278980375,0.22005282,104520.0,104510.0,0.24439018]
[1750278980629,0.21048574,104520.0,104510.0,0.01485289]
[1750278980879,0.57386373,104520.0,104510.0,0.20622213]
[1750278981094,0.57386373,104520.0,104510.0,0.2157905]
[1750278981310,0.56429628,104520.0,104510.0,0.2157905]
[1750278981533,0.56429628,104520.0,104510.0,0.2157936]
[1750278981970,0.59263449,104520.0,104510.0,0.19736924]
[1750278982403,0.59263449,104520.0,104510.0,0.2069377]
[1750278982839,0.75079449,104520.0,104510.0,0.2029377]
[1750278983062,0.75079449,104520.0,104510.0,0.002]
[1750278983289,0.78369449,104520.0,104510.0,0.002]
[1750278983510,1.6247816,104520.0,104510.0,0.002]
[1750278983730,1.2663771,104520.0,104510.0,0.003]
[1750278984453,1.36252632,104520.0,104510.0,0.003]
[1750278984694,1.2663771,104520.0,104510.0,0.002]
[1750278984927,1.26065625,104520.0,104510.0,0.002]
[1750278985360,1.26065625,104520.0,104510.0,0.01971547]
[1750278985573,1.26065625,104520.0,104510.0,0.01771547]
[1750278986875,1.26265625,104520.0,104510.0,0.01771547]
[1750278987306,1.26065625,104520.0,104510.0,0.01771547]
[1750278987738,0.5409377,104510.0,104500.0,0.22966325]
[1750278987950,0.91388305,104510.0,104500.0,0.23780297]
[1750278988201,0.22925595,104520.0,104510.0,0.20093761]
[1750278988437,0.57882367,104520.0,104510.0,0.21864634]
[1750278988656,0.56925659,104520.0,104510.0,0.23778279]
[1750278988877,0.56925659,104520.0,104510.0,0.29778279]
[1750278989333,0.56925659,104520.0,104510.0,0.28821461]
[1750278989799,0.56925659,104520.0,104510.0,0.29778279]
[1750278990237,1.10040194,104520.0,104510.0,0.29778279]
[1750278990450,1.10040194,104520.0,104510.0,0.28821461]
[1750278991309,1.09083449,104520.0,104510.0,0.07770873]
[1750278991522,1.09083449,104520.0,104510.0,0.06]
[1750278992016,1.09083449,104520.0,104500.0,0.29366188]
[1750278992253,0.00956827,104510.0,104500.0,0.32093559]
[1750278992684,0.00956818,104510.0,104500.0,0.31136704]
[1750278992902,0.009568,104510.0,104500.0,0.31136704]
[1750278993329,0.02870445,104510.0,104500.0,0.31136704]
[1750278993787,0.04784091,104510.0,104500.0,0.32293595]
[1750278994242,0.03827254,104510.0,104500.0,0.32393595]
[1750278994715,0.02870427,104510.0,104500.0,0.32393595]
[1750278995178,0.03827254,104510.0,104500.0,0.32393595]
[1750278999410,0.37827254,104510.0,104500.0,0.32398714]
[1750278999782,1.07944219,104510.0,104500.0,0.02075553]
[1750278999870,0.98329297,104510.0,104500.0,0.02075553]
[1750279000604,1.01579297,104510.0,104500.0,0.02075553]
[1750279000838,1.038716,104510.0,104500.0,0.02075553]
[1750279003160,0.66577065,104510.0,104500.0,0.003]
[1750279003403,0.76029065,104510.0,104500.0,0.19438755]
[1750279003644,0.56386054,104510.0,104500.0,0.28709484]
[1750279003900,0.71795388,104510.0,104500.0,0.2765262]
[1750279004116,0.70842588,104510.0,104500.0,0.28409539]
[1750279004568,0.69885761,104510.0,104500.0,0.26495692]
[1750279005283,0.68928924,104510.0,104500.0,0.26495692]
[1750279006183,0.68928924,104510.0,104500.0,0.26595692]
[1750279006836,1.08518255,104510.0,104500.0,0.26795692]
[1750279007048,1.06223459,104510.0,104500.0,0.26795692]
[1750279007496,0.68928924,104510.0,104500.0,0.26795692]
[1750279007739,0.68928924,104510.0,104500.0,0.2775262]
[1750279007740,0.71223987,104510.0,104500.0,0.2775262]
[1750279007955,0.55431987,104510.0,104500.0,0.29666431]
[1750279008146,0.71211987,104510.0,104500.0,0.29666431]
[1750279008353,0.68916924,104510.0,104500.0,0.29666431]
[1750279008566,0.53136924,104510.0,104500.0,0.2870953]